Workbook

Sheet Consolidated
A1: Swami Vivekananda Youth Movement
A2: Vignyana Vahini Budget
A3: S.No | B3: Activities | C3: Budget 2012 2013 | D3: Budget 2013 2014 | E3: Budget 2014 2015
A4: A | B4: Personnel Cost | C4: 540000 | D4: 594000 | E4: 653400
A5: B | B5: Recurring Cost | C5: =C6+C7+C8+C9+C10 -> 943000 | D5: =D6+D7+D8+D9+D10 -> 1037300 | E5: =E6+E7+E8+E9+E10 -> 1141030
A6: B.1 | B6: Technical & resource support | C6: 373000 | D6: 410300 | E6: 451330
A7: B.2 | B7: Travel & Conveyance of Mobile lab | C7: 161000 | D7: 177100 | E7: 194810
A8: B.3 | B8: Capacity building | C8: 60000 | D8: 66000 | E8: 72600
A9: B.4 | B9: Events | C9: 258000 | D9: 283800 | E9: 312180
A10: B.5 | B10: Operational Expenses | C10: 91000 | D10: 100100 | E10: 110110
A11: C | B11: Capital cost | C11: 907000 | D11: 0 | E11: 0
B12: Total Budget | C12: =C4+C5+C11 -> 2390000 | D12: =D4+D5+D11 -> 1631300 | E12: =E4+E5+E11 -> 1794430
B13: Grand Total | C13: =SUM(C12:E12) -> 5815730
A15: Swami Vivekananda Youth Movement
A16: Vignyana Vahini Budget (%)
A17: S.No | B17: Activities | C17: Budget 2012 2013 (%) | D17: Budget 2013 2014 (%) | E17: Budget 2014 2015 (%)
A18: A | B18: Personnel Cost | C18: =540000/2390000% -> 22.59414226 | D18: =594000/1631300% -> 36.41267701 | E18: =653400/1794430% -> 36.41267701
A19: B | B19: Recurring Cost | C19: =943000/2390000% -> 39.45606695 | D19: =1037300/1631300% -> 63.58732299 | E19: =1141030/1794430% -> 63.58732299
A20: C | B20: Capital cost | C20: =907000/2390000% -> 37.94979079 | D20: 0 | E20: 0
B21: Total Budget | C21: =2390000/2390000% -> 100 | D21: =D18+D19+D20 -> 100 | E21: =E18+E19+E20 -> 100

Sheet Detailed
A1: Swami Vivekananda Youth Movement
A2: Vignyana Vahini Budget
A3: S.No | B3: Activities | C3: 2012 2013 1st Quarter | D3: 2012 2013 2nd Quarter | E3: 2012 2013 3rd Quarter | F3: 2012 2013 4th Quarter | G3: Budget 2012 2013 | H3: Budget 2013 2014 | I3: Budget 2014 2015
A4: A | B4: Personnel Cost | C4: =SUM(C5:C9) -> 135000 | D4: =SUM(D5:D9) -> 135000 | E4: 135000 | F4: 135000 | G4: 540000 | H4: 594000 | I4: 653400
A5: A.1 | B5: Program Manager (1) | C5: 45000 | D5: 45000 | E5: 45000 | F5: 45000 | G5: =SUM(C5:F5) -> 180000 | H5: =G5*11/10 -> 198000 | I5: =H5*11/10 -> 217800
A6: A.2 | B6: Program Coordinator (1) | C6: 30000 | D6: 30000 | E6: 30000 | F6: 30000 | G6: =SUM(C6:F6) -> 120000 | H6: =G6*11/10 -> 132000 | I6: 145200
A7: A.3 | B7: Facilitator (1) | C7: 22500 | D7: 22500 | E7: 22500 | F7: 22500 | G7: 90000 | H7: =G7*11/10 -> 99000 | I7: 108900
A8: A.4 | B8: Office Manager & Facilitator (1) | C8: 22500 | D8: 22500 | E8: 22500 | F8: 22500 | G8: 90000 | H8: =G8*11/10 -> 99000 | I8: 108900
A9: A.5 | B9: Sector Head (1) | C9: 15000 | D9: 15000 | E9: 15000 | F9: 15000 | G9: 60000 | H9: =G9*11/10 -> 66000 | I9: 72600
A10: B | B10: Recurring Cost | C10: =C11+C16+C19+C23+C28 -> 267600 | D10: =D11+D16+D19+D23+D28 -> 155400 | E10: 270100 | F10: 249900 | G10: 943000 | H10: 1037300 | I10: 1141030
A11: B.1 | B11: Technical & resource support | C11: =SUM(C12:C15) -> 218000 | D11: =SUM(D12:D15) -> 22500 | E11: 80000 | F11: 52500 | G11: 373000 | H11: 410300 | I11: 451330
A12: B.1.1 | B12: Equipment & chemicals | C12: 135000 | D12: 8000 | E12: 25000 | F12: 8000 | G12: =SUM(C12:F12) -> 176000 | H12: =G12*11/10 -> 193600 | I12: =H12*11/10 -> 212960
A13: B.1.2 | B13: Books, CDs & DVDs | C13: 20000 | D13: 500 | E13: 5000 | F13: 500 | G13: =SUM(C13:F13) -> 26000 | H13: =G13*11/10 -> 28600 | I13: 31460
A14: B.1.3 | B14: Other materials | C14: 13000 | D14: 4000 | E14: 4000 | F14: 4000 | G14: 25000 | H14: 27500 | I14: 30250
A15: B.1.4 | B15: Worksheets | C15: 50000 | D15: 10000 | E15: 46000 | F15: 40000 | G15: 146000 | H15: 160600 | I15: 176660
A16: B.2 | B16: Travel & Conveyance of Mobile lab | C16: =SUM(C17:C18) -> 12700 | D16: =SUM(D17:D18) -> 52600 | E16: 39700 | F16: 56000 | G16: 161000 | H16: 177100 | I16: 194810
A17: B.2.1 | B17: Vehicle travel | C17: 8700 | D17: 43600 | E17: 32700 | F17: 48000 | G17: =SUM(C17:F17) -> 133000 | H17: =G17*11/10 -> 146300 | I17: =H17*11/10 -> 160930
A18: B.2.2 | B18: Staff travel & food | C18: 4000 | D18: 9000 | E18: 7000 | F18: 8000 | G18: =SUM(C18:F18) -> 28000 | H18: =G18*11/10 -> 30800 | I18: =H18*11/10 -> 33880
A19: B.3 | B19: Capacity building | C19: =SUM(C20:C22) -> 5000 | D19: =SUM(D20:D22) -> 18000 | E19: 19000 | F19: 18000 | G19: 60000 | H19: 66000 | I19: 72600
A20: B.3.1 | B20: Teachers' training | C20: 2000 | D20: 12000 | E20: 10000 | F20: 12000 | G20: =SUM(C20:F20) -> 36000 | H20: =G20*11/10 -> 39600 | I20: =H20*11/10 -> 43560
A21: B.3.2 | B21: Staff training & exposure | C21: 3000 | D21: 0 | E21: 3000 | F21: 0 | G21: =SUM(C21:F21) -> 6000 | H21: =G21*11/10 -> 6600 | I21: 7260
A22: B.3.3 | B22: Students' training | C22: 0 | D22: 6000 | E22: 6000 | F22: 6000 | G22: 18000 | H22: =G22*11/10 -> 19800 | I22: 21780
A23: B.4 | B23: Events | C23: =SUM(C24:C27) -> 11000 | D23: =SUM(D24:D27) -> 48500 | E23: 113000 | F23: 85500 | G23: 258000 | H23: 283800 | I23: 312180
A24: B.4.1 | B24: School based events | C24: 2000 | D24: 12000 | E24: 8000 | F24: 7500 | G24: =SUM(C24:F24) -> 29500 | H24: =G24*11/10 -> 32450 | I24: =H24*11/10 -> 35695
A25: B.4.2 | B25: Science calendar | C25: 5000 | D25: 33500 | E25: 63000 | F25: 60000 | G25: =SUM(C25:F25) -> 161500 | H25: =G25*11/10 -> 177650 | I25: 195415
A26: B.4.3 | B26: Career guidance | C26: 2000 | D26: 0 | E26: 40000 | F26: 15000 | G26: 57000 | H26: =G26*11/10 -> 62700 | I26: 68970
A27: B.4.4 | B27: Community Radio Programs | C27: 2000 | D27: 3000 | E27: 2000 | F27: 3000 | G27: 10000 | H27: =G27*11/10 -> 11000 | I27: 12100
A28: B.5 | B28: Operational Expenses | C28: =SUM(C29:C35) -> 20900 | D28: =SUM(D29:D35) -> 13800 | E28: 18400 | F28: 37900 | G28: 91000 | H28: 100100 | I28: 110110
A29: B.5.1 | B29: Office rent | C29: 9000 | D29: 9000 | E29: 9000 | F29: 9000 | G29: =SUM(C29:F29) -> 36000 | H29: =G29*11/10 -> 39600 | I29: =H29*11/10 -> 43560
A30: B.5.2 | B30: Stationery & other expenses | C30: 3000 | D30: 3000 | E30: 3000 | F30: 3000 | G30: =SUM(C30:F30) -> 12000 | H30: =G30*11/10 -> 13200 | I30: 14520
A31: B.5.3 | B31: Phone calls | C31: 1800 | D31: 1800 | E31: 1800 | F31: 1800 | G31: 7200 | H31: 7920 | I31: 8712
A32: B.5.4 | B32: Annual report | C32: 0 | D32: 0 | E32: 0 | F32: 2000 | G32: 2000 | H32: 2200 | I32: 2420
A33: B.5.5 | B33: Teachers' meeting | C33: 2100 | D33: 0 | E33: 1600 | F33: 2100 | G33: 5800 | H33: 6380 | I33: 7018
A34: B.5.6 | B34: Website setup & maintenance | C34: 5000 | D34: 0 | E34: 3000 | F34: 0 | G34: 8000 | H34: 8800 | I34: 9680
A35: B.5.7 | B35: Accounting & Auditing Expenses | C35: 0 | D35: 0 | E35: 0 | F35: 20000 | G35: 20000 | H35: 22000 | I35: 24200
A36: C | B36: Capital cost | C36: =SUM(C37:C44) -> 877000 | D36: =SUM(D37:D44) -> 0 | E36: 30000 | F36: 0 | G36: 907000 | H36: 0 | I36: 0
A37: C.1 | B37: Mobile lab vehicle | C37: 675000 | D37: 0 | E37: 0 | F37: 0 | G37: =SUM(C37:F37) -> 675000 | H37: 0 | I37: 0
A38: C.2 | B38: Laptop & Projector | C38: 70000 | D38: 0 | E38: 0 | F38: 0 | G38: =SUM(C38:F38) -> 70000 | H38: 0 | I38: 0
A39: C.3 | B39: Office Computer & Printer | C39: 35000 | D39: 0 | E39: 0 | F39: 0 | G39: 35000 | H39: 0 | I39: 0
A40: C.4 | B40: Vehicle UPS system | C40: 30000 | D40: 0 | E40: 0 | F40: 0 | G40: 30000 | H40: 0 | I40: 0
A41: C.5 | B41: Vehicle & office equipment | C41: 45000 | D41: 0 | E41: 0 | F41: 0 | G41: 45000 | H41: 0 | I41: 0
A42: C.6 | B42: Phone | C42: 2000 | D42: 0 | E42: 0 | F42: 0 | G42: 2000 | H42: 0 | I42: 0
A43: C.7 | B43: Telescope assembly | C43: 10000 | D43: 0 | E43: 30000 | F43: 0 | G43: 40000 | H43: 0 | I43: 0
A44: C.8 | B44: Microscope & slides | C44: 10000 | D44: 0 | E44: 0 | F44: 0 | G44: 10000 | H44: 0 | I44: 0
B45: Total Budget | C45: =C4+C10+C36 -> 1279600 | D45: =D4+D10+D36 -> 290400 | E45: 435100 | F45: 384900 | G45: 2390000 | H45: 1631300 | I45: 1794430

Sheet HPS
A1: Swami Vivekananda Youth Movement
A2: Vignyana Vahini Budget - HPS
A3: S.No | B3: Activities | C3: 2012 2013 1st Quarter | D3: 2012 2013 2nd Quarter | E3: 2012 2013 3rd Quarter | F3: 2012 2013 4th Quarter | G3: Budget 2012 2013 | H3: Budget 2013 2014 | I3: Budget 2014 2015
A4: A | B4: Personnel Cost | C4: =SUM(C5:C9) -> 63750 | D4: =SUM(D5:D9) -> 63750 | E4: 63750 | F4: 63750 | G4: 255000 | H4: 280500 | I4: 308550
A5: A.1 | B5: Program Manager (1) | C5: 22500 | D5: 22500 | E5: 22500 | F5: 22500 | G5: =SUM(C5:F5) -> 90000 | H5: =G5*11/10 -> 99000 | I5: =H5*11/10 -> 108900
A6: A.2 | B6: Program Coordinator (1) | C6: 0 | D6: 0 | E6: 0 | F6: 0 | G6: =SUM(C6:F6) -> 0 | H6: =G6*11/10 -> 0 | I6: 0
A7: A.3 | B7: Facilitator (1) | C7: 22500 | D7: 22500 | E7: 22500 | F7: 22500 | G7: 90000 | H7: 99000 | I7: 108900
A8: A.4 | B8: Office Manager & Facilitator (1) | C8: 11250 | D8: 11250 | E8: 11250 | F8: 11250 | G8: 45000 | H8: 49500 | I8: 54450
A9: A.5 | B9: Sector Head (1) | C9: 7500 | D9: 7500 | E9: 7500 | F9: 7500 | G9: 30000 | H9: 33000 | I9: 36300
A10: B | B10: Recurring Cost | C10: =C11+C16+C19+C23+C28 -> 122000 | D10: =D11+D16+D19+D23+D28 -> 83400 | E10: 116200 | F10: 84400 | G10: 406000 | H10: 446600 | I10: 491260
A11: B.1 | B11: Technical & resource support | C11: =SUM(C12:C15) -> 100000 | D11: =SUM(D12:D15) -> 5500 | E11: 20000 | F11: 5500 | G11: 131000 | H11: 144100 | I11: 158510
A12: B.1.1 | B12: Equipment & chemicals | C12: 75000 | D12: 3000 | E12: 15000 | F12: 3000 | G12: =SUM(C12:F12) -> 96000 | H12: =G12*11/10 -> 105600 | I12: =H12*11/10 -> 116160
A13: B.1.2 | B13: Books, CDs & DVDs | C13: 15000 | D13: 500 | E13: 3000 | F13: 500 | G13: =SUM(C13:F13) -> 19000 | H13: =G13*11/10 -> 20900 | I13: 22990
A14: B.1.3 | B14: Other materials | C14: 10000 | D14: 2000 | E14: 2000 | F14: 2000 | G14: 16000 | H14: 17600 | I14: 19360
A15: B.1.4 | B15: Worksheets | C15: 0 | D15: 0 | E15: 0 | F15: 0 | G15: 0 | H15: 0 | I15: 0
A16: B.2 | B16: Travel & Conveyance of Mobile lab | C16: =SUM(C17:C18) -> 5600 | D16: =SUM(D17:D18) -> 30500 | E16: 19800 | F16: 43000 | G16: 98900 | H16: 108790 | I16: 119669
A17: B.2.1 | B17: Vehicle travel | C17: 3200 | D17: 26000 | E17: 16200 | F17: 37000 | G17: =SUM(C17:F17) -> 82400 | H17: =G17*11/10 -> 90640 | I17: =H17*11/10 -> 99704
A18: B.2.2 | B18: Staff travel & food | C18: 2400 | D18: 4500 | E18: 3600 | F18: 6000 | G18: =SUM(C18:F18) -> 16500 | H18: =G18*11/10 -> 18150 | I18: =H18*11/10 -> 19965
A19: B.3 | B19: Capacity building | C19: =SUM(C20:C22) -> 3500 | D19: =SUM(D20:D22) -> 6000 | E19: 5500 | F19: 6000 | G19: 21000 | H19: 23100 | I19: 25410
A20: B.3.1 | B20: Teachers' training | C20: 2000 | D20: 6000 | E20: 4000 | F20: 6000 | G20: =SUM(C20:F20) -> 18000 | H20: =G20*11/10 -> 19800 | I20: =H20*11/10 -> 21780
A21: B.3.2 | B21: Staff training & exposure | C21: 1500 | D21: 0 | E21: 1500 | F21: 0 | G21: =SUM(C21:F21) -> 3000 | H21: =G21*11/10 -> 3300 | I21: 3630
A22: B.3.3 | B22: Students' training | C22: 0 | D22: 0 | E22: 0 | F22: 0 | G22: 0 | H22: 0 | I22: 0
A23: B.4 | B23: Events | C23: =SUM(C24:C27) -> 6000 | D23: =SUM(D24:D27) -> 34500 | E23: 64000 | F23: 13000 | G23: 117500 | H23: 129250 | I23: 142175
A24: B.4.1 | B24: School based events | C24: 2000 | D24: 6000 | E24: 4000 | F24: 6000 | G24: =SUM(C24:F24) -> 18000 | H24: =G24*11/10 -> 19800 | I24: =H24*11/10 -> 21780
A25: B.4.2 | B25: Science calendar | C25: 3000 | D25: 27500 | E25: 59000 | F25: 6000 | G25: =SUM(C25:F25) -> 95500 | H25: =G25*11/10 -> 105050 | I25: 115555
A26: B.4.3 | B26: Career guidance | C26: 0 | D26: 0 | E26: 0 | F26: 0 | G26: 0 | H26: 0 | I26: 0
A27: B.4.4 | B27: Community Radio Programs | C27: 1000 | D27: 1000 | E27: 1000 | F27: 1000 | G27: 4000 | H27: 4400 | I27: 4840
A28: B.5 | B28: Operational Expenses | C28: =SUM(C29:C35) -> 6900 | D28: =SUM(D29:D35) -> 6900 | E28: 6900 | F28: 16900 | G28: 37600 | H28: 41360 | I28: 45496
A29: B.5.1 | B29: Office rent | C29: 4500 | D29: 4500 | E29: 4500 | F29: 4500 | G29: =SUM(C29:F29) -> 18000 | H29: =G29*11/10 -> 19800 | I29: =H29*11/10 -> 21780
A30: B.5.2 | B30: Stationery & other expenses | C30: 1500 | D30: 1500 | E30: 1500 | F30: 1500 | G30: =SUM(C30:F30) -> 6000 | H30: =G30*11/10 -> 6600 | I30: 7260
A31: B.5.3 | B31: Phone calls | C31: 900 | D31: 900 | E31: 900 | F31: 900 | G31: 3600 | H31: 3960 | I31: 4356
A32: B.5.4 | B32: Annual report | C32: 0 | D32: 0 | E32: 0 | F32: 0 | G32: 0 | H32: 0 | I32: 0
A33: B.5.5 | B33: Teachers' meeting | C33: 0 | D33: 0 | E33: 0 | F33: 0 | G33: 0 | H33: 0 | I33: 0
A34: B.5.6 | B34: Website setup & maintenance | C34: 0 | D34: 0 | E34: 0 | F34: 0 | G34: 0 | H34: 0 | I34: 0
A35: B.5.7 | B35: Accounting & Auditing Expenses | C35: 0 | D35: 0 | E35: 0 | F35: 10000 | G35: 10000 | H35: 11000 | I35: 12100
A36: C | B36: Capital cost | C36: =SUM(C37:C44) -> 825000 | D36: =SUM(D37:D44) -> 0 | E36: 0 | F36: 0 | G36: 825000 | H36: 0 | I36: 0
A37: C.1 | B37: Mobile lab vehicle | C37: 675000 | D37: 0 | E37: 0 | F37: 0 | G37: =SUM(C37:F37) -> 675000 | H37: 0 | I37: 0
A38: C.2 | B38: Laptop & Projector | C38: 70000 | D38: 0 | E38: 0 | F38: 0 | G38: =SUM(C38:F38) -> 70000 | H38: 0 | I38: 0
A39: C.3 | B39: Office Computer & Printer | C39: 0 | D39: 0 | E39: 0 | F39: 0 | G39: 0 | H39: 0 | I39: 0
A40: C.4 | B40: Vehicle UPS system | C40: 30000 | D40: 0 | E40: 0 | F40: 0 | G40: 30000 | H40: 0 | I40: 0
A41: C.5 | B41: Vehicle & office equipment | C41: 30000 | D41: 0 | E41: 0 | F41: 0 | G41: 30000 | H41: 0 | I41: 0
A42: C.6 | B42: Phone | C42: 0 | D42: 0 | E42: 0 | F42: 0 | G42: 0 | H42: 0 | I42: 0
A43: C.7 | B43: Telescope assembly | C43: 10000 | D43: 0 | E43: 0 | F43: 0 | G43: 10000 | H43: 0 | I43: 0
A44: C.8 | B44: Microscope & slides | C44: 10000 | D44: 0 | E44: 0 | F44: 0 | G44: 10000 | H44: 0 | I44: 0
B45: Total Budget | C45: =C4+C10+C36 -> 1010750 | D45: =D4+D10+D36 -> 147150 | E45: 179950 | F45: 148150 | G45: 1486000 | H45: 727100 | I45: 799810

Sheet HS
A1: Swami Vivekananda Youth Movement
A2: Vignyana Vahini Budget - HS
A3: S.No | B3: Activities | C3: 2012 2013 1st Quarter | D3: 2012 2013 2nd Quarter | E3: 2012 2013 3rd Quarter | F3: 2012 2013 4th Quarter | G3: Budget 2012 2013 | H3: Budget 2013 2014 | I3: Budget 2014 2015
A4: A | B4: Personnel Cost | C4: =SUM(C5:C9) -> 71250 | D4: =SUM(D5:D9) -> 71250 | E4: 71250 | F4: 71250 | G4: 285000 | H4: 313500 | I4: 344850
A5: A.1 | B5: Program Manager (1) | C5: 22500 | D5: 22500 | E5: 22500 | F5: 22500 | G5: =SUM(C5:F5) -> 90000 | H5: =G5*11/10 -> 99000 | I5: =H5*11/10 -> 108900
A6: A.2 | B6: Program Coordinator (1) | C6: 30000 | D6: 30000 | E6: 30000 | F6: 30000 | G6: =SUM(C6:F6) -> 120000 | H6: =G6*11/10 -> 132000 | I6: 145200
A7: A.3 | B7: Facilitator (1) | C7: 0 | D7: 0 | E7: 0 | F7: 0 | G7: 0 | H7: 0 | I7: 0
A8: A.4 | B8: Office Manager & Facilitator (1) | C8: 11250 | D8: 11250 | E8: 11250 | F8: 11250 | G8: 45000 | H8: 49500 | I8: 54450
A9: A.5 | B9: Sector Head (1) | C9: 7500 | D9: 7500 | E9: 7500 | F9: 7500 | G9: 30000 | H9: 33000 | I9: 36300
A10: B | B10: Recurring Cost | C10: =C11+C16+C19+C23+C28 -> 145500 | D10: =D11+D16+D19+D23+D28 -> 72000 | E10: 154000 | F10: 165500 | G10: 537000 | H10: 590700 | I10: 649770
A11: B.1 | B11: Technical & resource support | C11: =SUM(C12:C15) -> 118000 | D11: =SUM(D12:D15) -> 17000 | E11: 60000 | F11: 47000 | G11: 242000 | H11: 266200 | I11: 292820
A12: B.1.1 | B12: Equipment & chemicals | C12: 60000 | D12: 5000 | E12: 10000 | F12: 5000 | G12: =SUM(C12:F12) -> 80000 | H12: =G12*11/10 -> 88000 | I12: =H12*11/10 -> 96800
A13: B.1.2 | B13: Books, CDs & DVDs | C13: 5000 | D13: 0 | E13: 2000 | F13: 0 | G13: =SUM(C13:F13) -> 7000 | H13: =G13*11/10 -> 7700 | I13: 8470
A14: B.1.3 | B14: Other materials | C14: 3000 | D14: 2000 | E14: 2000 | F14: 2000 | G14: 9000 | H14: 9900 | I14: 10890
A15: B.1.4 | B15: Worksheets | C15: 50000 | D15: 10000 | E15: 46000 | F15: 40000 | G15: 146000 | H15: 160600 | I15: 176660
A16: B.2 | B16: Travel & Conveyance of Mobile lab | C16: =SUM(C17:C18) -> 7000 | D16: =SUM(D17:D18) -> 22100 | E16: 20000 | F16: 13000 | G16: 62100 | H16: 68310 | I16: 75141
A17: B.2.1 | B17: Vehicle travel | C17: 5500 | D17: 17600 | E17: 16500 | F17: 11000 | G17: =SUM(C17:F17) -> 50600 | H17: =G17*11/10 -> 55660 | I17: =H17*11/10 -> 61226
A18: B.2.2 | B18: Staff travel & food | C18: 1500 | D18: 4500 | E18: 3500 | F18: 2000 | G18: =SUM(C18:F18) -> 11500 | H18: =G18*11/10 -> 12650 | I18: =H18*11/10 -> 13915
A19: B.3 | B19: Capacity building | C19: =SUM(C20:C22) -> 1500 | D19: =SUM(D20:D22) -> 12000 | E19: 13500 | F19: 12000 | G19: 39000 | H19: 42900 | I19: 47190
A20: B.3.1 | B20: Teachers' training | C20: 0 | D20: 6000 | E20: 6000 | F20: 6000 | G20: =SUM(C20:F20) -> 18000 | H20: =G20*11/10 -> 19800 | I20: =H20*11/10 -> 21780
A21: B.3.2 | B21: Staff training & exposure | C21: 1500 | D21: 0 | E21: 1500 | F21: 0 | G21: =SUM(C21:F21) -> 3000 | H21: =G21*11/10 -> 3300 | I21: 3630
A22: B.3.3 | B22: Students' training | C22: 0 | D22: 6000 | E22: 6000 | F22: 6000 | G22: 18000 | H22: 19800 | I22: 21780
A23: B.4 | B23: Events | C23: =SUM(C24:C27) -> 5000 | D23: =SUM(D24:D27) -> 14000 | E23: 49000 | F23: 72500 | G23: 140500 | H23: 154550 | I23: 170005
A24: B.4.1 | B24: School based events | C24: 0 | D24: 6000 | E24: 4000 | F24: 1500 | G24: =SUM(C24:F24) -> 11500 | H24: =G24*11/10 -> 12650 | I24: =H24*11/10 -> 13915
A25: B.4.2 | B25: Science calendar | C25: 2000 | D25: 6000 | E25: 4000 | F25: 54000 | G25: =SUM(C25:F25) -> 66000 | H25: =G25*11/10 -> 72600 | I25: 79860
A26: B.4.3 | B26: Career guidance | C26: 2000 | D26: 0 | E26: 40000 | F26: 15000 | G26: 57000 | H26: 62700 | I26: 68970
A27: B.4.4 | B27: Community Radio Programs | C27: 1000 | D27: 2000 | E27: 1000 | F27: 2000 | G27: 6000 | H27: 6600 | I27: 7260
A28: B.5 | B28: Operational Expenses | C28: =SUM(C29:C35) -> 14000 | D28: =SUM(D29:D35) -> 6900 | E28: 11500 | F28: 21000 | G28: 53400 | H28: 58740 | I28: 64614
A29: B.5.1 | B29: Office rent | C29: 4500 | D29: 4500 | E29: 4500 | F29: 4500 | G29: =SUM(C29:F29) -> 18000 | H29: =G29*11/10 -> 19800 | I29: =H29*11/10 -> 21780
A30: B.5.2 | B30: Stationery & other expenses | C30: 1500 | D30: 1500 | E30: 1500 | F30: 1500 | G30: =SUM(C30:F30) -> 6000 | H30: =G30*11/10 -> 6600 | I30: 7260
A31: B.5.3 | B31: Phone calls | C31: 900 | D31: 900 | E31: 900 | F31: 900 | G31: 3600 | H31: 3960 | I31: 4356
A32: B.5.4 | B32: Annual report | C32: 0 | D32: 0 | E32: 0 | F32: 2000 | G32: 2000 | H32: 2200 | I32: 2420
A33: B.5.5 | B33: Teachers' meeting | C33: 2100 | D33: 0 | E33: 1600 | F33: 2100 | G33: 5800 | H33: 6380 | I33: 7018
A34: B.5.6 | B34: Website setup & maintenance | C34: 5000 | D34: 0 | E34: 3000 | F34: 0 | G34: 8000 | H34: 8800 | I34: 9680
A35: B.5.7 | B35: Accounting & Auditing Expenses | C35: 0 | D35: 0 | E35: 0 | F35: 10000 | G35: 10000 | H35: 11000 | I35: 12100
A36: C | B36: Capital cost | C36: =SUM(C37:C44) -> 52000 | D36: =SUM(D37:D44) -> 0 | E36: 30000 | F36: 0 | G36: 82000 | H36: 0 | I36: 0
A37: C.1 | B37: Mobile lab vehicle | C37: 0 | D37: 0 | E37: 0 | F37: 0 | G37: =SUM(C37:F37) -> 0 | H37: 0 | I37: 0
A38: C.2 | B38: Laptop & Projector | C38: 0 | D38: 0 | E38: 0 | F38: 0 | G38: =SUM(C38:F38) -> 0 | H38: 0 | I38: 0
A39: C.3 | B39: Office Computer & Printer | C39: 35000 | D39: 0 | E39: 0 | F39: 0 | G39: 35000 | H39: 0 | I39: 0
A40: C.4 | B40: Vehicle UPS system | C40: 0 | D40: 0 | E40: 0 | F40: 0 | G40: 0 | H40: 0 | I40: 0
A41: C.5 | B41: Vehicle & office equipment | C41: 15000 | D41: 0 | E41: 0 | F41: 0 | G41: 15000 | H41: 0 | I41: 0
A42: C.6 | B42: Phone | C42: 2000 | D42: 0 | E42: 0 | F42: 0 | G42: 2000 | H42: 0 | I42: 0
A43: C.7 | B43: Telescope assembly | C43: 0 | D43: 0 | E43: 30000 | F43: 0 | G43: 30000 | H43: 0 | I43: 0
A44: C.8 | B44: Microscope & slides | C44: 0 | D44: 0 | E44: 0 | F44: 0 | G44: 0 | H44: 0 | I44: 0
B45: Total Budget | C45: =C4+C10+C36 -> 268750 | D45: =D4+D10+D36 -> 143250 | E45: 255250 | F45: 236750 | G45: 904000 | H45: 904200 | I45: 994620

Sheet Break-up
A1: Swami Vivekananda Youth Movement
A2: Vignyana Vahini Budget
A3: S.No | B3: Activities | C3: HPS | D3: HS | E3: Total | F3: Budget 2012 2013 | G3: Budget 2013 2014 | H3: Budget 2014 2015
A4: A | B4: Personnel Cost | C4: =HPS!G4 -> 255000 | D4: =HS!G4 -> 285000 | E4: =C4+D4 -> 540000 | F4: 540000 | G4: =SUM(G5:G9) -> 594000 | H4: 653400
A5: A.1 | B5: Program Manager (1) | C5: =HPS!G5 -> 90000 | D5: =HS!G5 -> 90000 | E5: =C5+D5 -> 180000 | F5: 180000 | G5: =F5*11/10 -> 198000 | H5: =G5*11/10 -> 217800
A6: A.2 | B6: Program Coordinator (1) | C6: =HPS!G6 -> 0 | D6: =HS!G6 -> 120000 | E6: 120000 | F6: 120000 | G6: =F6*11/10 -> 132000 | H6: 145200
A7: A.3 | B7: Facilitator (1) | C7: =HPS!G7 -> 90000 | D7: =HS!G7 -> 0 | E7: 90000 | F7: 90000 | G7: 99000 | H7: 108900
A8: A.4 | B8: Office Manager & Facilitator (1) | C8: =HPS!G8 -> 45000 | D8: =HS!G8 -> 45000 | E8: 90000 | F8: 90000 | G8: 99000 | H8: 108900
A9: A.5 | B9: Sector Head (1) | C9: =HPS!G9 -> 30000 | D9: =HS!G9 -> 30000 | E9: 60000 | F9: 60000 | G9: 66000 | H9: 72600
A10: B | B10: Recurring Cost | C10: =HPS!G10 -> 406000 | D10: =HS!G10 -> 537000 | E10: 943000 | F10: 943000 | G10: =G11+G16+G19+G23+G28 -> 1037300 | H10: 1141030
A11: B.1 | B11: Technical & resource support | C11: =HPS!G11 -> 131000 | D11: =HS!G11 -> 242000 | E11: 373000 | F11: 373000 | G11: =SUM(G12:G15) -> 410300 | H11: 451330
A12: B.1.1 | B12: Equipment & chemicals | C12: =HPS!G12 -> 96000 | D12: =HS!G12 -> 80000 | E12: 176000 | F12: 176000 | G12: =F12*11/10 -> 193600 | H12: =G12*11/10 -> 212960
A13: B.1.2 | B13: Books, CDs & DVDs | C13: =HPS!G13 -> 19000 | D13: =HS!G13 -> 7000 | E13: 26000 | F13: 26000 | G13: =F13*11/10 -> 28600 | H13: 31460
A14: B.1.3 | B14: Other materials | C14: =HPS!G14 -> 16000 | D14: =HS!G14 -> 9000 | E14: 25000 | F14: 25000 | G14: 27500 | H14: 30250
A15: B.1.4 | B15: Worksheets | C15: =HPS!G15 -> 0 | D15: =HS!G15 -> 146000 | E15: 146000 | F15: 146000 | G15: 160600 | H15: 176660
A16: B.2 | B16: Travel & Conveyance of Mobile lab | C16: =HPS!G16 -> 98900 | D16: =HS!G16 -> 62100 | E16: 161000 | F16: 161000 | G16: =SUM(G17:G18) -> 177100 | H16: 194810
A17: B.2.1 | B17: Vehicle travel | C17: =HPS!G17 -> 82400 | D17: =HS!G17 -> 50600 | E17: 133000 | F17: 133000 | G17: =F17*11/10 -> 146300 | H17: =G17*11/10 -> 160930
A18: B.2.2 | B18: Staff travel & food | C18: =HPS!G18 -> 16500 | D18: =HS!G18 -> 11500 | E18: 28000 | F18: 28000 | G18: =F18*11/10 -> 30800 | H18: =G18*11/10 -> 33880
A19: B.3 | B19: Capacity building | C19: =HPS!G19 -> 21000 | D19: =HS!G19 -> 39000 | E19: 60000 | F19: 60000 | G19: =SUM(G20:G22) -> 66000 | H19: 72600
A20: B.3.1 | B20: Teachers' training | C20: =HPS!G20 -> 18000 | D20: =HS!G20 -> 18000 | E20: 36000 | F20: 36000 | G20: =F20*11/10 -> 39600 | H20: =G20*11/10 -> 43560
A21: B.3.2 | B21: Staff training & exposure | C21: =HPS!G21 -> 3000 | D21: =HS!G21 -> 3000 | E21: 6000 | F21: 6000 | G21: =F21*11/10 -> 6600 | H21: 7260
A22: B.3.3 | B22: Students' training | C22: =HPS!G22 -> 0 | D22: =HS!G22 -> 18000 | E22: 18000 | F22: 18000 | G22: 19800 | H22: 21780
A23: B.4 | B23: Events | C23: =HPS!G23 -> 117500 | D23: =HS!G23 -> 140500 | E23: 258000 | F23: 258000 | G23: =SUM(G24:G27) -> 283800 | H23: 312180
A24: B.4.1 | B24: School based events | C24: =HPS!G24 -> 18000 | D24: =HS!G24 -> 11500 | E24: 29500 | F24: 29500 | G24: =F24*11/10 -> 32450 | H24: =G24*11/10 -> 35695
A25: B.4.2 | B25: Science calendar | C25: =HPS!G25 -> 95500 | D25: =HS!G25 -> 66000 | E25: 161500 | F25: 161500 | G25: =F25*11/10 -> 177650 | H25: 195415
A26: B.4.3 | B26: Career guidance | C26: =HPS!G26 -> 0 | D26: =HS!G26 -> 57000 | E26: 57000 | F26: 57000 | G26: 62700 | H26: 68970
A27: B.4.4 | B27: Community Radio Programs | C27: =HPS!G27 -> 4000 | D27: =HS!G27 -> 6000 | E27: 10000 | F27: 10000 | G27: 11000 | H27: 12100
A28: B.5 | B28: Operational Expenses | C28: =HPS!G28 -> 37600 | D28: =HS!G28 -> 53400 | E28: 91000 | F28: 91000 | G28: =SUM(G29:G35) -> 100100 | H28: 110110
A29: B.5.1 | B29: Office rent | C29: =HPS!G29 -> 18000 | D29: =HS!G29 -> 18000 | E29: 36000 | F29: 36000 | G29: =F29*11/10 -> 39600 | H29: =G29*11/10 -> 43560
A30: B.5.2 | B30: Stationery & other expenses | C30: =HPS!G30 -> 6000 | D30: =HS!G30 -> 6000 | E30: 12000 | F30: 12000 | G30: =F30*11/10 -> 13200 | H30: 14520
A31: B.5.3 | B31: Phone calls | C31: =HPS!G31 -> 3600 | D31: =HS!G31 -> 3600 | E31: 7200 | F31: 7200 | G31: 7920 | H31: 8712
A32: B.5.4 | B32: Annual report | C32: =HPS!G32 -> 0 | D32: =HS!G32 -> 2000 | E32: 2000 | F32: 2000 | G32: 2200 | H32: 2420
A33: B.5.5 | B33: Teachers' meeting | C33: =HPS!G33 -> 0 | D33: =HS!G33 -> 5800 | E33: 5800 | F33: 5800 | G33: 6380 | H33: 7018
A34: B.5.6 | B34: Website setup & maintenance | C34: =HPS!G34 -> 0 | D34: =HS!G34 -> 8000 | E34: 8000 | F34: 8000 | G34: 8800 | H34: 9680
A35: B.5.7 | B35: Accounting & Auditing Expenses | C35: =HPS!G35 -> 10000 | D35: =HS!G35 -> 10000 | E35: 20000 | F35: 20000 | G35: 22000 | H35: 24200
A36: C | B36: Capital cost | C36: =HPS!G36 -> 825000 | D36: =HS!G36 -> 82000 | E36: 907000 | F36: 907000 | G36: =SUM(G37:G44) -> 0 | H36: 0
A37: C.1 | B37: Mobile lab vehicle | C37: =HPS!G37 -> 675000 | D37: =HS!G37 -> 0 | E37: 675000 | F37: 675000 | G37: 0 | H37: 0
A38: C.2 | B38: Laptop & Projector | C38: =HPS!G38 -> 70000 | D38: =HS!G38 -> 0 | E38: 70000 | F38: 70000 | G38: 0 | H38: 0
A39: C.3 | B39: Office Computer & Printer | C39: =HPS!G39 -> 0 | D39: =HS!G39 -> 35000 | E39: 35000 | F39: 35000 | G39: 0 | H39: 0
A40: C.4 | B40: Vehicle UPS system | C40: =HPS!G40 -> 30000 | D40: =HS!G40 -> 0 | E40: 30000 | F40: 30000 | G40: 0 | H40: 0
A41: C.5 | B41: Vehicle & office equipment | C41: =HPS!G41 -> 30000 | D41: =HS!G41 -> 15000 | E41: 45000 | F41: 45000 | G41: 0 | H41: 0
A42: C.6 | B42: Phone | C42: =HPS!G42 -> 0 | D42: =HS!G42 -> 2000 | E42: 2000 | F42: 2000 | G42: 0 | H42: 0
A43: C.7 | B43: Telescope assembly | C43: =HPS!G43 -> 10000 | D43: =HS!G43 -> 30000 | E43: 40000 | F43: 40000 | G43: 0 | H43: 0
A44: C.8 | B44: Microscope & slides | C44: =HPS!G44 -> 10000 | D44: =HS!G44 -> 0 | E44: 10000 | F44: 10000 | G44: 0 | H44: 0
B45: Total Budget | C45: =HPS!G45 -> 1486000 | D45: =D4+D10+D36 -> 904000 | E45: 2390000 | F45: 2390000 | G45: 1631300 | H45: 1794430
